Cogmind - Beta 9.6 @@@ ROGUE MODE // 2020.08.26 @ 21:37:18 Player: octapi Result: Destroyed by as-57116 with Assembled Heavy Rifle Performance ------------- Evolutions (1) 500 Regions Visited (3) 600 Robots Destroyed (43) 215 Value Destroyed (1039) 1039 Prototype IDs (6) 120 Alien Tech Used (0) 0 Bonus (0) 0 TOTAL SCORE: 2474 Bonus ------- None Cogmind --------- Core Integrity 0/400 Matter 300/300 Energy 100/100 System Corruption 7% Temperature Cool (0) Movement Rolling (130) Ox5 Location -9/Mines Parts ------- > --- POWER (1) -------- (None) > --- PROPULSION (2) --- Wheel > --- UTILITY (4) ------ Medium Storage Unit Large Storage Unit High-capacity Storage Unit > --- WEAPON (2) ------- (None) > --- INVENTORY (22) --- Ion Engine Cooled Ion Engine Cooled Ion Engine Improved Signal Interpreter Actuator Array Particle Gun Pulse Rifle Assault Rifle Light Assault Rifle Heavy Assault Rifle EMP Blaster Great Maul Great Maul Makeshift Spear Peak State ------------ > --- POWER ------------ Cooled Ion Engine > --- PROPULSION ------- Light Treads Light Treads > --- UTILITY ---------- Improved Heat Sink Medium Storage Unit Large Storage Unit High-capacity Storage Unit > --- WEAPON ----------- Pulse Rifle Pulse Rifle > --- INVENTORY -------- Ion Engine Cooled Ion Engine Cooled Ion Engine Wheel Improved Signal Interpreter Actuator Array Particle Gun Pulse Rifle Assault Rifle Light Assault Rifle Heavy Assault Rifle EMP Blaster Great Maul Great Maul [Rating: 20] Favorites ----------- Power Cooled Ion Engine Engine Cooled Ion Engine Power Core Light Nuclear Core Propulsion Light Treads Treads Light Treads Wheel Wheel Utility High-capacity Storage Unit Device Improved Heat Sink Storage High-capacity Storage Unit Processor Targeting Computer Protection Light Armor Plating Weapon Assault Rifle Energy Gun Pulse Rifle Ballistic Gun Assault Rifle Launcher EMP Blaster Impact Weapon Great Maul Build | -11 -10 -9 -9 ------- Run | Scr Mat Mat Min Slots Evolved 2 | . . 2 . Power . | . . . . Propulsion . | . . . . Utility 2 | . . 2 . Weapon . | . . . . Parts Attached 34 | 6 10 14 4 Power 4 | 1 2 1 . Engine 3 | 1 1 1 . Core 1 | . 1 . . Reactor . | . . . . Propulsion 9 | 2 2 4 1 Treads 7 | 2 2 3 . Leg . | . . . . Wheel 2 | . . 1 1 Hover . | . . . . Flight . | . . . . Utility 7 | 1 3 2 1 Device 1 | . . . 1 Storage 4 | 1 2 1 . Processor 1 | . 1 . . Hackware . | . . . . Protection 1 | . . 1 . Artifact . | . . . . Weapon 14 | 2 3 7 2 Energy Gun 5 | 1 . 2 2 Energy Cannon . | . . . . Ballistic Gun 7 | 1 3 3 . Ballistic Cannon . | . . . . Launcher 1 | . . 1 . Special Weapon . | . . . . Impact Weapon 1 | . . 1 . Slashing Weapon . | . . . . Piercing Weapon . | . . . . Special Melee Weapon . | . . . . Unidentified Prototypes . | . . . . Parts Lost 15 | . 2 7 6 Power 2 | . 1 . 1 Propulsion 4 | . . 2 2 Utility 2 | . . 1 1 Weapon 7 | . 1 4 2 Highest Loss Streak 5 | . 1 2 5 Average Slot Usage (%) 94 | . 99 86 99 Engine 8 | . 4 11 10 Core 3 | . 9 . . Treads 22 | . 27 17 20 Device 2 | . . . 10 Storage 24 | . 14 29 33 Processor 5 | . 13 . . Protection 2 | . . 6 . Energy Gun 6 | . 3 1 21 Ballistic Gun 17 | . 24 19 . Naked Turns . | . . . . Heaviest Build 74 | 12 57 74 71 Greatest Support 40 | 40 40 40 40 Greatest Overweight (x) 7 | . 3 7 7 Average Overweight (x) 1 | . . 1 1 Largest Inventory Capacity 22 | 6 18 22 22 Average Capacity 15 | 5 7 20 22 Most Carried 18 | 6 6 18 15 Average Carried 9 | 3 5 11 14 Final Capacity 22 | 6 18 22 22 Final Carried 16 | 6 5 16 14 Class Distribution -------------------- 51% | Mutant 48% | Hauler-Mutant Dominant Class ---------------- Mutant | -10/Materials Hauler-Mutant | -9/Materials Hauler-Mutant | -9/Mines Resources | -11 -10 -9 -9 ----------- Run | Scr Mat Mat Min Matter Collected 974 | 190 379 365 40 Remotely . | . . . . Salvage Created 1221 | . 516 701 4 Parts 93 | . 41 49 3 Haulers Intercepted . | . . . . Recyclers Shooed 1 | . . 1 . Parts Field Recycled . | . . . . Retrieved Matter . | . . . . Parts Self-Destructed . | . . . . Prevented . | . . . . Kills | -11 -10 -9 -9 ------- Run | Scr Mat Mat Min Combat Hostiles Destroyed 37 | . 15 20 2 Guns 33 | . 15 16 2 AOE 4 | . . 4 . Classes Destroyed 7 | . 3 4 . Worker 1 | . . 1 . Builder 1 | . . 1 . Watcher 4 | . 3 1 . Swarmer 16 | . 6 8 2 Grunt 17 | . 9 8 . Duelist 1 | . . 1 . Sentry 3 | . . 3 . Best Kill Streak 8 | . 3 8 1 Combat Bots Only 6 | . 3 6 1 Max Kills in Single Turn 2 | . 1 2 1 Gunslinging . | . . . . Exploded 2 | . . 2 . Melee . | . . . . Uniques/NPCs Destroyed . | . . . . Combat | -11 -10 -9 -9 -------- Run | Scr Mat Mat Min Damage Taken 2250 | . 444 1000 806 Core 464 | . 53 156 255 Absorbed by Shields . | . . . . Core Remaining (%) 89 | 100 78 . . Volleys Fired 102 | . 43 51 8 Largest 2 | . 2 2 2 Hottest 126 | . 60 86 126 Shots Fired 197 | . 84 97 16 Gun 194 | . 84 94 16 Cannon . | . . . . Launcher 3 | . . 3 . Special . | . . . . Kinetic 152 | . 74 78 . Thermal 32 | . . 16 16 Explosive . | . . . . Electromagnetic 13 | . 10 3 . Robot Hit Streak 23 | . 10 23 6 Robot Miss Streak 4 | . 4 3 1 Penetration Max . | . . . . Secondary Targets 1 | . . 1 . Max Gunslinging Chain 1 | . . 1 . Shots Hit Robots 142 | . 55 76 11 Core Hits 63 | . 29 32 2 Critical Hits . | . . . . Critical Kills . | . . . . Critical Parts Destroyed . | . . . . Melee Attacks 2 | . . 2 . Impact 2 | . . 2 . Slashing . | . . . . Piercing . | . . . . Sneak Attacks . | . . . . Combat Hostiles . | . . . . Follow-up Attacks . | . . . . Damage Inflicted 2145 | . 664 1326 155 Guns 2008 | . 664 1189 155 Cannons . | . . . . Explosions 133 | . . 133 . Melee . | . . . . Ramming 4 | . . 4 . Kinetic 1480 | . 565 915 . Thermal 429 | . . 274 155 Explosive . | . . . . Electromagnetic 232 | . 99 133 . Impact . | . . . . Slashing . | . . . . Piercing . | . . . . Highest Corruption 7 | . . 1 7 Average Corruption 1 | . . 1 1 Corruption Purged . | . . . . Effects 8 | . . 5 3 Message Errors 4 | . . 1 3 Energy Discharges 1 | . . 1 . Data Loss (minor) 1 | . . 1 . Targeting Errors 1 | . . 1 . Weapon Failures 1 | . . 1 . Overload Shots . | . . . . Overflow Damage 12 | . . 12 . Projectiles . | . . . . Explosions 12 | . . 12 . Melee . | . . . . Knockbacks . | . . . . Impact . | . . . . Kinetic . | . . . . Secondary . | . . . . Self-Inflicted Damage 18 | . . 18 . Shots 1 | . . 1 . Rammed 2 | . . 2 . Targets Rammed 2 | . . 2 . Kicked . | . . . . Crushed . | . . . . Highest Temperature 203 | . 42 203 36 Average Temperature 51 | . 21 83 19 Received Heat Transfer 432 | . 156 276 . Siege Activations . | . . . . Robots Corrupted . | . . . . Combat Hostiles . | . . . . Parts Fried . | . . . . Impact Corruptions . | . . . . Robots Melted . | . . . . Combat Hostiles . | . . . . Parts Melted 1 | . . 1 . Heat Transferred 925 | . . 592 333 Parts Sabotaged . | . . . . Parts Stolen . | . . . . Parts Stripped . | . . . . Power Chain Reactions . | . . . . Missiles Intercepted . | . . . . Alert | -11 -10 -9 -9 ------- Run | Scr Mat Mat Min Peak Influence 343 | . 249 343 108 Average Influence 100 | . 76 149 64 Maximum Alert Level 1 | . 1 1 . Low Security (%) 86 | 100 95 68 100 Level 1 13 | . 4 31 . Level 2 . | . . . . Level 3 . | . . . . Level 4 . | . . . . Level 5 . | . . . . High Security . | . . . . Max Security . | . . . . Squads Dispatched 4 | . 1 3 . Investigation . | . . . . Extermination . | . . . . Reinforcement 4 | . 1 3 . Assault . | . . . . Garrison . | . . . . Intercept . | . . . . Construction Impeded . | . . . . Haulers Reinforced . | . . . . Stealth | -11 -10 -9 -9 --------- Run | Scr Mat Mat Min Distress Signals 6 | . 2 4 . Communications Jammed . | . . . . Distress Signals . | . . . . Times Spotted 85 | . 27 40 18 Peak Tracking Total 16 | . 3 9 16 Tactical Retreats 4 | . 1 2 1 Traps | -11 -10 -9 -9 ------- Run | Scr Mat Mat Min Traps Triggered 1 | . 1 . . Indirectly . | . . . . Trap Hack Attempts . | . . . . Triggered . | . . . . Disarmed 12 | . 6 6 . Reprogrammed . | . . . . Reused . | . . . . Traps Extracted . | . . . . Installed . | . . . . Triggered . | . . . . Machines | -11 -10 -9 -9 ---------- Run | Scr Mat Mat Min Machines Disabled 1 | . . 1 . Max in Single Turn 1 | . . 1 . Machines Sabotaged . | . . . . Garrisons Compromised . | . . . . Overloaded Fab Kills . | . . . . Fab Network Shutdowns . | . . . . Hacking | -11 -10 -9 -9 --------- Run | Scr Mat Mat Min Machines Accessed 14 | . 7 7 . Terminals 14 | . 7 7 . Fabricators . | . . . . Repair Stations . | . . . . Recycling Units . | . . . . Scanalyzers . | . . . . Garrison Access . | . . . . Total Hacks 60 | . 26 34 . Successful 44 | . 16 28 . Failed 16 | . 10 6 . Catastrophic 4 | . 4 . . Database Lockouts . | . . . . Manual 38 | . 20 18 . Terminals 60 | . 26 34 . Fabricators . | . . . . Repair Stations . | . . . . Recycling Units . | . . . . Scanalyzers . | . . . . Garrison Access . | . . . . Terminal Hacks 23 | . 6 17 . Record 1 | . . 1 . Prototype ID Bank 3 | . 1 2 . Level Access Points 1 | . 1 . . Branch Access Points 1 | . . 1 . Emergency Access Points 1 | . . 1 . Terminal Index 1 | . 1 . . Alert Level 3 | . . 3 . Unreport Threat 1 | . 1 . . Locate Traps 2 | . . 2 . Disarm Traps 3 | . 1 2 . Recall Reinforcements 2 | . . 2 . Registered Components 1 | . . 1 . Zone Layout 3 | . 1 2 . Fabricator Hacks . | . . . . Repair Station Hacks . | . . . . Recycling Unit Hacks . | . . . . Scanalyzer . | . . . . Garrison Access Hacks . | . . . . Unauthorized Hacks 20 | . 9 11 . Terminals 20 | . 9 11 . Track 11 | . 5 6 . Botnet 9 | . 4 5 . Fabricators . | . . . . Repair Stations . | . . . . Recycling Units . | . . . . Scanalyzers . | . . . . Garrison Access . | . . . . Data Cores Recovered . | . . . . Used . | . . . . Hacking Detections 14 | . 7 7 . Full Trace Events 1 | . . 1 . Feedback Events . | . . . . Feedback Blocked . | . . . . Robot Schematics Acquired . | . . . . Robots Built . | . . . . Matter . | . . . . Time . | . . . . Total Robot Build Rating . | . . . . Part Schematics Acquired . | . . . . Parts Built . | . . . . Matter . | . . . . Time . | . . . . Total Part Build Rating . | . . . . Parts Repaired . | . . . . Time . | . . . . Parts Recycled . | . . . . Recycled Matter . | . . . . Retrieved Matter . | . . . . Retrieved Components . | . . . . Parts Scanalyzed . | . . . . Part Schematics Acquired . | . . . . Parts Damaged . | . . . . Bothacking | -11 -10 -9 -9 ------------ Run | Scr Mat Mat Min Used RIF Installer . | . . . . Robots Hacked . | . . . . Non-combat . | . . . . Combat . | . . . . Robot Hacks Applied . | . . . . Relay Couplers Released . | . . . . Robots Rewired . | . . . . Allies Hacked . | . . . . Hacks Repelled . | . . . . Allies | -11 -10 -9 -9 -------- Run | Scr Mat Mat Min Total Allies . | . . . . Largest Group . | . . . . Highest-Rated Group . | . . . . Highest-Rated Ally . | . . . . Total Orders . | . . . . Ally Attacks . | . . . . Total Damage . | . . . . Kills . | . . . . Allies Corrupted . | . . . . Allies Melted . | . . . . Intel | -11 -10 -9 -9 ------- Run | Scr Mat Mat Min Robot Analysis Total . | . . . . Derelict Logs Recovered 2 | . . . 2 Drone Launches . | . . . . Drone Recoveries . | . . . . Exploration | -11 -10 -9 -9 ------------- Run | Scr Mat Mat Min Turns Passed 3324 | 89 1213 1294 728 Spaces Moved 1536 | 51 561 541 383 Core 7 | 6 1 . . Treads 1459 | 45 560 530 324 Legs . | . . . . Wheels 70 | . . 11 59 Hover . | . . . . Flight . | . . . . Fastest Speed 50 | 50 160 150 130 Average Speed 176 | 147 162 193 174 Slowest Speed 220 | 160 200 220 180 Overloaded Moves . | . . . . Propulsion Burnouts . | . . . . Robots Hopped . | . . . . Cave-ins Triggered 1 | . . . 1 Exploration Rate (%) 54 | 4 88 52 75 Regions Visited 3 Branch Regions 1 Pre-discovered Areas 1 | . . . 1 Known Exits Taken 2 | . 1 1 . Unknown Exits Taken 1 | 1 . . . Scrap Searched 2 | . . . 2 Spaces Dug 1 | . . 1 . Terrain Destroyed 1 | . . 1 . Melee 1 | . . 1 . Projectile . | . . . . AOE . | . . . . Actions | -11 -10 -9 -9 --------- Run | Scr Mat Mat Min Total 1947 | 62 778 682 425 Wait 233 | . 154 50 29 Move 1533 | 50 560 540 383 Hop . | . . . . Pick Up 30 | 6 4 19 1 Fast Attach 15 | 6 6 3 . Attach 12 | . 2 7 3 Detach . | . . . . Swap 7 | . 2 4 1 Drop 11 | . 7 4 . Fire 102 | . 43 51 8 Melee 2 | . . 2 . Ram . | . . . . Kick . | . . . . Crush 2 | . . 2 . Escape Stasis . | . . . . Rewire . | . . . . Trap . | . . . . Miscellaneous . | . . . . Route ------- -11/Scrapyard -10/Materials (discovered 5 exits: *Mat x3 / [*Min x2]) -9/Materials (discovered 4 exits: [*Mat x2] / *Min / Sto) -9/Mines (discovered 1 exit: [*Mat]) History --------- Turn | Location | Event 4 | -11/Scrapyard | Discovered new exit (range 15) 90 | -11/Scrapyard | Entered Materials 234 | -10/Materials | Identified exit to Materials 300 | -10/Materials | Build established: Mutant 856 | -10/Materials | Discovered new exit (range 8) 1080 | -10/Materials | Discovered new exit (range 15) 1303 | -10/Materials | Entered another Materials area 1303 | -9/Materials | Evolved 2 slots: Utility x2 1634 | -9/Materials | Discovered new exit (range 16) 1652 | -9/Materials | Identified exit to Mines 1652 | -9/Materials | Identified exit to Storage 2024 | -9/Materials | Build established: Hauler-Mutant 2213 | -9/Materials | Discovered new exit (range 7) 2597 | -9/Materials | Entered Mines 2613 | -9/Mines | Met a Derelict bent on vengeance 3051 | -9/Mines | A weapon hastily lodged in a ceiling crevice suddenly fell to the ground 3263 | -9/Mines | Discovered new exit (range 11) 3271 | -9/Mines | Learned Materials stockpile data 3290 | -9/Mines | Assembled infested the area 3295 | -9/Mines | Assisted by a Guerilla fighting off Assembled 3313 | -9/Mines | Core integrity fell below 50% 3314 | -9/Mines | Crushed by falling debris 3322 | -9/Mines | Core integrity fell below 20% 3325 | -9/Mines | Destroyed by as-57116 with Assembled Heavy Rifle Last Messages --------------- 03309_ HV Slug penetrates D-53 Grenadier. 03309_ D-53 Grenadier suffers critical hit. 03309_ D-53 Grenadier destroyed. 03312_ Lgt. Treads destroyed. 03314_ The unstable cave ceiling collapses. 03314_ Crushed by falling debris. 03314_ Pulse Rifle destroyed. 03314_ System corrupted by crushing effect (+1). 03314_ Cld. Ion Engine destroyed. 03314_ Pulse Rifle destroyed. 03314_ HV Slug penetrates as-48161. 03314_ as-48161 suffers critical hit. 03314_ as-48161 destroyed. 03314_ HV Slug penetrates as-79382. 03314_ as-79382 suffers critical hit. 03314_ as-79382 destroyed. 03316_ as-24912 suffers critical hit. 03316_ as-24912 destroyed. 03317_ The unstable cave ceiling collapses. 03318_ K8-MSV(h) destroyed. Map ----- +----------------------------------------------------+ | ## ##????#####??????# ?????# #???# #????## | | ## ##????????????????#????? ##???# #????# | | ## ##?????????????????????? #????# #???## | | ## ##????#####?????????????#### #????# ##### | | ### ##??? ?????????????????# #????# ## | | ##### """ ######???????????# #????# ### | | # """ #???????????# #????#### #?### | | # """ #### #????????#### ???????# #???? | | ####### #??# #####???## ???????# #???? | | ????????? """ #??# #???# ???????# #???? | | ????????????"?????##### #???? ???????# #???? | | ??????????????????????# #????? ???????# #???# | | ??????????????????????# ######? ##???????# #??## | | ??????????????????????# [=#?# ### ###### #### | | ??????????????????????###### #?# ## | | ???????????????????????????#=#?# ######### #### | | ???????????????????????????# #??# ######### #??## | | ???????????????????????????# #### #???# | | ???????????????????????????# ###########???? | | ???????????????????????????###### #?????????????? | | ???????????????????????????????# #?????????????? | | ????##########??????????????## #?????????????? | | #### #??????????????# #????????? #??? | | % """ ####???????????# #????? #??? | | %% """ ## ########;#### ### #???? | | ##### "" # # aa@ #????? | | ???????# a %a!%= #?????? | | ???????# a % % aa####### #?????? | | ???????# a aa % a #????# ### #?????? | | ???????# ;# # ##????## ##??? ???? | | ???????########## # #??????## #?????? ??? | | ????????????????## #???????## #????????# ??? | | ?????????????????## ####????????? #???????????? | | ??????????????????####???????????? ???????????? | | ?????????????????????????????????? ??????????? | | ?????????????????????????????????? < ?????????? | | ??????????????????????????????????# #????????? | | ???????????????????????????????????######????????? | | ?????????????????????????????????????????????????? | | | | | | | | | | | | | | | | | | | | | | | +----------------------------------------------------+ Best States ------------- Heat Dissipation 42 Energy Generation 14 Energy Capacity 280 Matter Stores 300 Matter Capacity 300 Sight Range 16 Terrain Scan Density 10 Armor Coverage 150 Evasion (%) 40 Targeting Accuracy 5 Recoil Reduction 2 Item Schematics ----------------- None Robot Schematics ------------------ None Fabricated ------------ Nothing Alien Tech Used ----------------- None Achievements -------------- None Challenges ------------ None Game ------ Seed ImpulseDataBeam Manual? 0 Play Time 00:27:35 Cumulative 184.8 hours Start 2020.08.26 @ 20:54:59 End 2020.08.26 @ 21:37:18 Sessions 1 Manual Loads 0 Difficulty Rogue Special Mode None Game No. 108 Rogue 108 Adventurer 0 Explorer 0 Win Type - Total 8 Types 7/0/1/0/0/0/0 Lore% 63 Gallery% 73 Achievement% 56 Wizard Run 0 Options --------- ASCII 0 Keyboard 0 Movement Mouse Keybinds 0 Fullscreen 1 Font 18/SmallcapsGlow Map View 76x50 Tactical HUD 1 Map Filters NONE Filters NONE Steam 1 RUN: bc44af21-dd0d-479d-82e2-bd7bbcd14422